fUSD/lending_fUSD_20260608
["ID","MTS","AMOUNT","RATE_DAILY","PERIOD"]
[424452802,1780920639000,-500.0,0.00014452,2]
[424452797,1780920639000,-500.0,0.00014452,2]
[424452807,1780920639000,-615.0,0.00014452,2]
[424452793,1780920639000,-500.0,0.00014452,2]
[424452844,1780920639000,-1700.0,0.000145,5]
[424452868,1780920639000,-1000.0,0.00014732,2]
[424452843,1780920639000,-150.0,0.00014487,2]
[424452875,1780920639000,-1547.74424173,0.00014758,2]
[424452879,1780920639000,-381.0,0.0001477,2]
[424452877,1780920639000,-31607.0,0.00014767,2]
[424452876,1780920639000,-25000.0,0.00014759,3]
[424452878,1780920639000,-25000.0,0.00014768,3]
[424452885,1780920639000,-10265.5628898,0.00014787,2]
[424452884,1780920639000,-4920.90826675,0.00014787,2]
[424452880,1780920639000,-150.0,0.00014772,2]
[424452888,1780920639000,-25000.0,0.00014794,3]
[424452883,1780920639000,-25000.0,0.00014786,3]
[424452887,1780920639000,-381.0,0.00014792,2]
[424452882,1780920639000,-1547.74424173,0.00014782,2]
[424452881,1780920639000,-25000.0,0.00014777,3]
[424452886,1780920639000,-1000.0,0.0001479,2]
[424452889,1780920639000,-10000.0,0.00014797,2]
[424452899,1780920639000,-500.0,0.00014799,2]
[424452900,1780920639000,-500.0,0.00014799,2]
[424452901,1780920639000,-500.0,0.00014799,2]
[424452902,1780920639000,-227.81320246,0.00014799,2]
[424452891,1780920639000,-458.55035766,0.00014799,2]
[424452890,1780920639000,-500.0,0.00014799,2]
[424452898,1780920639000,-500.0,0.00014799,2]
[424452892,1780920639000,-500.0,0.00014799,2]
[424452895,1780920639000,-500.0,0.00014799,2]
[424452893,1780920639000,-500.0,0.00014799,2]
[424452896,1780920639000,-500.0,0.00014799,2]
[424452897,1780920639000,-500.0,0.00014799,2]
[424452903,1780920639000,-500.0,0.00014799,2]
[424452845,1780920639000,-255.0,0.00014544,2]
[424452873,1780920639000,-25000.0,0.0001475,3]
[424452874,1780920639000,-381.0,0.00014758,2]
[424452904,1780920639000,-500.0,0.00014799,2]
[424452869,1780920639000,-25000.0,0.00014733,3]
[424452867,1780920639000,-500.0,0.00014726,2]
[424452840,1780920639000,-615.0,0.00014452,2]
[424452841,1780920639000,-615.0,0.00014452,2]
[424452839,1780920639000,-397.57156841,0.00014452,2]
[424452838,1780920639000,-615.0,0.00014452,2]
[424452836,1780920639000,-500.0,0.00014452,2]
[424452837,1780920639000,-500.0,0.00014452,2]
[424452842,1780920639000,-632.47344829,0.00014452,2]
[424452848,1780920639000,-1547.74424179,0.00014687,2]
[424452851,1780920639000,-400.0,0.000147,5]
[424452850,1780920639000,-369.1246256,0.000147,2]
[424452853,1780920639000,-162.39048204,0.000147,2]
[424452855,1780920639000,-1547.74424173,0.00014711,2]
[424452852,1780920639000,-2000.0,0.000147,2]
[424452849,1780920639000,-20422.43931928,0.000147,2]
[424452835,1780920639000,-500.0,0.00014452,2]
[424452859,1780920639000,-500.0,0.00014721,2]
[424452857,1780920639000,-500.0,0.00014721,2]
[424452864,1780920639000,-174.9440075,0.00014721,2]
[424452862,1780920639000,-500.0,0.00014721,2]
[424452866,1780920639000,-25000.0,0.00014724,3]
[424452871,1780920639000,-500.0,0.00014741,2]
[424452865,1780920639000,-1000.0,0.00014722,2]
[424452872,1780920639000,-25000.0,0.00014742,3]
[424452863,1780920639000,-500.0,0.00014721,2]
[424452861,1780920639000,-500.0,0.00014721,2]
[424452856,1780920639000,-500.0,0.00014721,2]
[424452860,1780920639000,-500.0,0.00014721,2]
[424452858,1780920639000,-500.0,0.00014721,2]
[424452854,1780920639000,-1873.79091791,0.000147,2]
[424452870,1780920639000,-1547.74424173,0.00014734,2]
[424452955,1780920640000,-500.0,0.00014799,2]
[424452957,1780920640000,-500.0,0.00014799,2]
[424452956,1780920640000,-500.0,0.00014799,2]
[424452954,1780920640000,-500.0,0.00014799,2]
[424452950,1780920640000,-500.0,0.00014799,2]
[424452951,1780920640000,-500.0,0.00014799,2]
[424452963,1780920640000,-250.0,0.00014799,2]
[424452937,1780920640000,-500.0,0.00014799,2]
[424452935,1780920640000,-500.0,0.00014799,2]
[424452949,1780920640000,-501.23722603,0.00014799,2]
[424452953,1780920640000,-500.0,0.00014799,2]
[424452962,1780920640000,-500.0,0.00014799,2]
[424452944,1780920640000,-500.0,0.00014799,2]
[424452964,1780920640000,-500.0,0.00014799,2]
[424452952,1780920640000,-500.0,0.00014799,2]
[424452960,1780920640000,-500.0,0.00014799,2]
[424452972,1780920640000,-500.0,0.00014799,2]
[424452965,1780920640000,-500.0,0.00014799,2]
[424452975,1780920640000,-494.60352973,0.00014799,2]
[424452970,1780920640000,-500.0,0.00014799,2]
[424452967,1780920640000,-500.0,0.00014799,2]
[424452971,1780920640000,-500.0,0.00014799,2]
[424452974,1780920640000,-500.0,0.00014799,2]
[424452969,1780920640000,-500.0,0.00014799,2]
[424452973,1780920640000,-556.2651521,0.00014799,2]
[424452966,1780920640000,-500.0,0.00014799,2]
[424452968,1780920640000,-500.0,0.00014799,2]
[424452945,1780920640000,-500.0,0.00014799,2]
[424452958,1780920640000,-500.0,0.00014799,2]
[424452943,1780920640000,-151.17109124,0.00014799,2]
[424452930,1780920640000,-500.0,0.00014799,2]
[424452947,1780920640000,-500.0,0.00014799,2]
[424452906,1780920640000,-500.0,0.00014799,2]
[424452905,1780920640000,-500.0,0.00014799,2]
[424452913,1780920640000,-375.70710105,0.00014799,2]
[424452915,1780920640000,-500.0,0.00014799,2]
[424452908,1780920640000,-351.39242597,0.00014799,2]
[424452911,1780920640000,-253.46592426,0.00014799,2]
[424452907,1780920640000,-500.0,0.00014799,2]
[424452912,1780920640000,-500.0,0.00014799,2]
[424452910,1780920640000,-500.0,0.00014799,2]
[424452909,1780920640000,-526.84702297,0.00014799,2]
[424452914,1780920640000,-500.0,0.00014799,2]
[424452926,1780920640000,-500.0,0.00014799,2]
[424452916,1780920640000,-500.0,0.00014799,2]
[424452939,1780920640000,-500.0,0.00014799,2]
[424452928,1780920640000,-500.0,0.00014799,2]
[424452918,1780920640000,-500.0,0.00014799,2]
[424452921,1780920640000,-500.0,0.00014799,2]
[424452919,1780920640000,-500.0,0.00014799,2]
[424452922,1780920640000,-375.70710105,0.00014799,2]
[424452931,1780920640000,-500.0,0.00014799,2]
[424452923,1780920640000,-500.0,0.00014799,2]
[424452920,1780920640000,-500.0,0.00014799,2]
[424452932,1780920640000,-500.0,0.00014799,2]
[424452933,1780920640000,-500.0,0.00014799,2]
[424452934,1780920640000,-500.0,0.00014799,2]
[424452941,1780920640000,-500.0,0.00014799,2]
[424452936,1780920640000,-500.0,0.00014799,2]
[424452942,1780920640000,-500.0,0.00014799,2]
[424452917,1780920640000,-500.0,0.00014799,2]
[424452976,1780920640000,-2000.0,0.00014799,2]
[424452991,1780920640000,-25000.0,0.00014803,3]
[424452978,1780920640000,-500.0,0.00014799,2]
[424453009,1780920640000,-500.0,0.00014849,2]
[424453010,1780920640000,-500.0,0.00014849,2]
[424453015,1780920640000,-1000.0,0.00014859,2]
[424453025,1780920640000,-381.0,0.00014884,2]
[424453026,1780920640000,-25000.0,0.00014891,3]
[424453017,1780920640000,-25000.0,0.00014865,3]
[424453016,1780920640000,-336.16585107,0.0001486,2]
[424453020,1780920640000,-1547.74424173,0.00014876,2]
[424453022,1780920640000,-200.0,0.0001488,2]
[424453018,1780920640000,-25000.0,0.00014874,3]
[424453021,1780920640000,-200.0,0.00014879,2]
[424453019,1780920640000,-381.0,0.00014874,2]
[424453024,1780920640000,-25000.0,0.00014882,3]
[424453008,1780920640000,-25000.0,0.00014847,3]
[424453023,1780920640000,-200.0,0.0001488,2]
[424453029,1780920640000,-33252.4679,0.000149,2]
[424453033,1780920640000,-25000.0,0.000149,3]
[424453035,1780920640000,-369.12462559,0.000149,2]
[424453034,1780920640000,-3179.0,0.000149,5]
[424453031,1780920640000,-2000.0,0.000149,2]
[424453038,1780920640000,-2000.0,0.000149,2]
[424453028,1780920640000,-500.0,0.00014899,2]
[424453030,1780920640000,-1672.42,0.000149,2]
[424453032,1780920640000,-10000.0,0.000149,2]
[424453037,1780920640000,-400.0,0.000149,5]
[424453036,1780920640000,-1547.74424173,0.000149,2]
[424453040,1780920640000,-335.53749417,0.00014949,2]
[424452979,1780920640000,-500.0,0.00014799,2]
[424453027,1780920640000,-500.0,0.00014899,2]
[424453011,1780920640000,-237280.7495408,0.0001485,2]
[424453014,1780920640000,-25000.0,0.00014856,3]
[424453013,1780920640000,-381.0,0.00014853,2]
[424453006,1780920640000,-1169.643,0.00014845,2]
[424452977,1780920640000,-500.0,0.00014799,2]
[424452980,1780920640000,-500.0,0.00014799,2]
[424452987,1780920640000,-2500000.0,0.000148,2]
[424452986,1780920640000,-500.0,0.00014799,2]
[424452984,1780920640000,-500.0,0.00014799,2]
[424452988,1780920640000,-369.12462559,0.000148,2]
[424452989,1780920640000,-2000.0,0.000148,2]
[424452981,1780920640000,-500.0,0.00014799,2]
[424452985,1780920640000,-500.0,0.00014799,2]
[424452983,1780920640000,-500.0,0.00014799,2]
[424452992,1780920640000,-381.0,0.00014805,2]
[424452996,1780920640000,-25000.0,0.00014821,3]
[424452998,1780920640000,-1547.74424173,0.00014829,2]
[424452982,1780920640000,-500.0,0.00014799,2]
[424453005,1780920640000,-381.0,0.00014843,2]
[424453012,1780920640000,-1547.74424173,0.00014853,2]
[424452999,1780920640000,-25000.0,0.0001483,3]
[424453004,1780920640000,-25000.0,0.00014838,3]
[424453007,1780920640000,-197.227,0.00014845,2]
[424453002,1780920640000,-1044.42627825,0.00014834,2]
[424453001,1780920640000,-381.0,0.00014833,2]
[424453003,1780920640000,-500.0,0.00014838,2]
[424452994,1780920640000,-25000.0,0.00014812,3]
[424452990,1780920640000,-400.0,0.000148,5]
[424452993,1780920640000,-1547.74424173,0.00014805,2]
[424453000,1780920640000,-606.22,0.00014832,2]
[424452995,1780920640000,-381.0,0.00014814,2]
[424452997,1780920640000,-1000.0,0.00014827,2]
[424453083,1780920641000,-500.0,0.00014999,2]
[424453089,1780920641000,-500.0,0.00014999,2]
[424453082,1780920641000,-500.0,0.00014999,2]
[424453086,1780920641000,-500.0,0.00014999,2]
[424453087,1780920641000,-500.0,0.00014999,2]
[424453080,1780920641000,-500.0,0.00014999,2]
[424453071,1780920641000,-500.0,0.00014999,2]
[424453075,1780920641000,-500.0,0.00014999,2]
[424453073,1780920641000,-500.0,0.00014999,2]
[424453076,1780920641000,-500.0,0.00014999,2]
[424453079,1780920641000,-500.0,0.00014999,2]
[424453085,1780920641000,-500.0,0.00014999,2]
[424453074,1780920641000,-500.0,0.00014999,2]
[424453084,1780920641000,-500.0,0.00014999,2]
[424453104,1780920641000,-500.0,0.00014999,2]
[424453090,1780920641000,-500.0,0.00014999,2]
[424453093,1780920641000,-500.0,0.00014999,2]
[424453081,1780920641000,-500.0,0.00014999,2]
[424453092,1780920641000,-500.0,0.00014999,2]
[424453094,1780920641000,-500.0,0.00014999,2]
[424453096,1780920641000,-500.0,0.00014999,2]
[424453098,1780920641000,-500.0,0.00014999,2]
[424453095,1780920641000,-500.0,0.00014999,2]
[424453105,1780920641000,-500.0,0.00014999,2]
[424453106,1780920641000,-500.0,0.00014999,2]
[424453097,1780920641000,-500.0,0.00014999,2]
[424453100,1780920641000,-500.0,0.00014999,2]
[424453102,1780920641000,-500.0,0.00014999,2]
[424453070,1780920641000,-500.0,0.00014999,2]
[424453091,1780920641000,-500.0,0.00014999,2]
[424453077,1780920641000,-500.0,0.00014999,2]
[424453041,1780920641000,-381.0,0.0001496,2]
[424453066,1780920641000,-151.0,0.00014997,2]
[424453101,1780920641000,-500.0,0.00014999,2]
[424453052,1780920641000,-500.0,0.00014995,2]
[424453051,1780920641000,-500.0,0.00014995,2]
[424453044,1780920641000,-150.0,0.00014986,2]
[424453042,1780920641000,-381.0,0.00014963,2]
[424453043,1780920641000,-381.0,0.00014969,2]
[424453047,1780920641000,-151.0,0.00014986,2]
[424453049,1780920641000,-381.0,0.00014987,2]
[424453050,1780920641000,-250.0,0.00014987,2]
[424453048,1780920641000,-153.84603977,0.00014986,2]
[424453045,1780920641000,-154.58509942,0.00014986,2]
[424453046,1780920641000,-150.0,0.00014986,2]
[424453053,1780920641000,-500.0,0.00014995,2]
[424453055,1780920641000,-56804.7075658,0.00014996,2]
[424453056,1780920641000,-2137.6410457,0.00014996,2]
[424453054,1780920641000,-500.0,0.00014995,2]
[424453057,1780920641000,-7853.8933219,0.00014996,2]
[424453062,1780920641000,-3795.0977052,0.00014996,2]
[424453061,1780920641000,-324.34566573,0.00014996,2]
[424453064,1780920641000,-3018.0235996,0.00014996,2]
[424453065,1780920641000,-151.0,0.00014997,2]
[424453060,1780920641000,-453159.8093322,0.00014996,2]
[424453063,1780920641000,-285878.3639886,0.00014996,2]
[424453058,1780920641000,-99706.9556527,0.00014996,2]
[424453059,1780920641000,-1280.5647453,0.00014996,2]
[424453067,1780920641000,-500.0,0.00014999,2]
[424453078,1780920641000,-500.0,0.00014999,2]
[424453069,1780920641000,-500.0,0.00014999,2]
[424453072,1780920641000,-500.0,0.00014999,2]
[424453068,1780920641000,-500.0,0.00014999,2]
[424453103,1780920641000,-500.0,0.00014999,2]
[424453088,1780920641000,-500.0,0.00014999,2]
[424453107,1780920641000,-500.0,0.00014999,2]
[424453148,1780920641000,-500.0,0.00014999,2]
[424453145,1780920641000,-500.0,0.00014999,2]
[424453146,1780920641000,-500.0,0.00014999,2]
[424453142,1780920641000,-500.0,0.00014999,2]
[424453139,1780920641000,-500.0,0.00014999,2]
[424453143,1780920641000,-500.0,0.00014999,2]
[424453141,1780920641000,-500.0,0.00014999,2]
[424453150,1780920641000,-500.0,0.00014999,2]
[424453160,1780920641000,-666.0,0.00014999,2]
[424453161,1780920641000,-300.0,0.00014999,2]
[424453151,1780920641000,-500.0,0.00014999,2]
[424453149,1780920641000,-500.0,0.00014999,2]
[424453152,1780920641000,-228.97,0.00014999,2]
[424453153,1780920641000,-300.0,0.00014999,2]
[424453155,1780920641000,-300.0,0.00014999,2]
[424453158,1780920641000,-300.0,0.00014999,2]
[424453154,1780920641000,-666.0,0.00014999,2]
[424453157,1780920641000,-300.0,0.00014999,2]
[424453156,1780920641000,-300.0,0.00014999,2]
[424453159,1780920641000,-300.0,0.00014999,2]
[424453162,1780920641000,-300.0,0.00014999,2]
[424453165,1780920641000,-351.45582822,0.00014999,10]
[424453164,1780920641000,-173.85234094,0.00014999,10]
[424453167,1780920641000,-2000.0,0.00015,2]
[424453166,1780920641000,-2972.0,0.00015,5]
[424453163,1780920641000,-347.7046819,0.00014999,10]
[424453168,1780920641000,-4136885.15844016,0.00015,2]
[424453169,1780920641000,-582602.13315024,0.00015,2]
[424453099,1780920641000,-500.0,0.00014999,2]
[424453137,1780920641000,-500.0,0.00014999,2]
[424453140,1780920641000,-500.0,0.00014999,2]
[424453147,1780920641000,-500.0,0.00014999,2]
[424453135,1780920641000,-500.0,0.00014999,2]
[424453111,1780920641000,-500.0,0.00014999,2]
[424453112,1780920641000,-500.0,0.00014999,2]
[424453110,1780920641000,-500.0,0.00014999,2]
[424453109,1780920641000,-500.0,0.00014999,2]
[424453108,1780920641000,-500.0,0.00014999,2]
[424453118,1780920641000,-500.0,0.00014999,2]
[424453120,1780920641000,-500.0,0.00014999,2]
[424453119,1780920641000,-500.0,0.00014999,2]
[424453117,1780920641000,-500.0,0.00014999,2]
[424453115,1780920641000,-500.0,0.00014999,2]
[424453116,1780920641000,-500.0,0.00014999,2]
[424453113,1780920641000,-500.0,0.00014999,2]
[424453138,1780920641000,-500.0,0.00014999,2]
[424453121,1780920641000,-500.0,0.00014999,2]
[424453170,1780920641000,-786.1208293,0.00015,2]
[424453114,1780920641000,-500.0,0.00014999,2]
[424453126,1780920641000,-500.0,0.00014999,2]
[424453144,1780920641000,-500.0,0.00014999,2]
[424453136,1780920641000,-500.0,0.00014999,2]
[424453123,1780920641000,-500.0,0.00014999,2]
[424453130,1780920641000,-500.0,0.00014999,2]
[424453129,1780920641000,-500.0,0.00014999,2]
[424453134,1780920641000,-500.0,0.00014999,2]
[424453131,1780920641000,-500.0,0.00014999,2]
[424453133,1780920641000,-500.0,0.00014999,2]
[424453127,1780920641000,-500.0,0.00014999,2]
[424453132,1780920641000,-500.0,0.00014999,2]
[424453128,1780920641000,-500.0,0.00014999,2]
[424453124,1780920641000,-500.0,0.00014999,2]
[424453125,1780920641000,-500.0,0.00014999,2]
[424453122,1780920641000,-500.0,0.00014999,2]
[424453178,1780920642000,-1680.0,0.00015,2]
[424453171,1780920642000,-215.86427702,0.00012511,2]
[424453172,1780920642000,-169.51170573,0.000148,2]
[424453174,1780920642000,-2154.47683234,0.00015,2]
[424453176,1780920642000,-14393.2415099,0.00015,2]
[424453175,1780920642000,-459.06803217,0.00015,2]
[424453177,1780920642000,-554.18570853,0.00015,2]
[424453179,1780920642000,-1020.54048194,0.00015,2]
[424453173,1780920642000,-1704.27921218,0.000148,2]
[424453181,1780920642000,-81045.64181309,0.00015,2]
[424453183,1780920642000,-3889.97061395,0.00015,2]
[424453182,1780920642000,-24186.73374814,0.00015,2]
[424453186,1780920642000,-295.607039,0.00015,2]
[424453184,1780920642000,-66701.22783418,0.00015,2]
[424453188,1780920642000,-6919.60002,0.00015,2]
[424453191,1780920642000,-997251.77698593,0.00015,2]
[424453192,1780920642000,-3374.7395112,0.00015,2]
[424453180,1780920642000,-344.69894631,0.00015,2]
[424453195,1780920646000,-500.0,0.000149,2]
[424453198,1780920646000,-7171.04261869,0.00015,2]
[424453196,1780920646000,-1331.4335366,0.000149,2]
[424453200,1780920646000,-866.0948,0.00015,2]
[424453199,1780920646000,-394.79394071,0.00015,2]
[424453201,1780920646000,-585.17472321,0.00015,2]
[424453197,1780920646000,-42.35738131,0.000149,2]
[424453204,1780920648000,-442.0,0.00014452,2]
[424453205,1780920648000,-17501.02626031,0.00015,2]
[424453208,1780920648000,-2154.67775313,0.00015,2]
[424453206,1780920648000,-539.06582463,0.00015,2]
[424453207,1780920648000,-2945.57715428,0.00015,2]
[424453210,1780920934000,600.0,0.00030137,120]
[424453211,1780920998000,2157.018,0.00030137,120]
[424453213,1780921155000,-371.41217302,0.00012558,2]
[424453212,1780921155000,-249.34782698,0.00012558,2]
[424453231,1780921352000,454.01753417,0.00012487,2]
[424453275,1780921726000,-265.21190886,0.00012265,2]
[424453272,1780921726000,-1546.26809546,0.00012265,2]
[424453271,1780921726000,-1189.76,0.00012265,2]
[424453273,1780921726000,-2736.02809546,0.00012265,2]
[424453276,1780921726000,-336.16585107,0.00012344,2]
[424453277,1780921726000,-1000.0,0.00012344,2]
[424453280,1780921726000,-2736.02809546,0.00012345,2]
[424453278,1780921726000,-1134.65033553,0.00012345,2]
[424453279,1780921726000,-2736.02809546,0.00012345,2]
[424453281,1780921726000,-2736.02809546,0.00012345,2]
[424453274,1780921726000,-286.93190022,0.00012265,2]
[424453282,1780921726000,-2736.02809546,0.00012345,2]
[424453284,1780921727000,-2736.02809546,0.00012345,2]
[424453283,1780921727000,-2736.02809546,0.00012345,2]
[424453324,1780921832000,-181.22,0.00012817,2]
[424453326,1780921832000,-900.0,0.000129,4]
[424453325,1780921832000,-394.02,0.00012872,2]
[424453332,1780921832000,-451.0,0.00013176,2]
[424453329,1780921832000,-458.0,0.00013077,2]
[424453335,1780921832000,-327.20489409,0.00013256,2]
[424453331,1780921832000,-443.0,0.00013176,2]
[424453327,1780921832000,-800.0,0.000129,4]
[424453328,1780921832000,-448.0,0.00013077,2]
[424453344,1780921832000,-444.0,0.00013263,2]
[424453349,1780921832000,-177.5,0.000133,2]
[424453333,1780921832000,-8204.86776239,0.00013229,2]
[424453337,1780921832000,-15894.42818489,0.00013256,2]
[424453348,1780921832000,-452.0,0.00013298,2]
[424453347,1780921832000,-448.0,0.00013298,2]
[424453346,1780921832000,-457.0,0.00013298,2]
[424453343,1780921832000,-454.0,0.00013263,2]
[424453350,1780921832000,-31607.0,0.00013315,2]
[424453351,1780921832000,-1091.35654828,0.00013329,3]
[424453334,1780921832000,-935.714,0.00013256,2]
[424453319,1780921832000,-400.0,0.000127,4]
[424453311,1780921832000,-150.0,0.00012387,2]
[424453322,1780921832000,-700.0,0.000128,4]
[424453299,1780921832000,-150.0,0.00012255,2]
[424453297,1780921832000,-336.65269453,0.00012165,2]
[424453300,1780921832000,-3469.28756732,0.00012345,2]
[424453309,1780921832000,-215.86427702,0.00012357,2]
[424453303,1780921832000,-326.827161,0.00012345,2]
[424453310,1780921832000,-1000.0,0.00012382,2]
[424453304,1780921832000,-951.59844034,0.00012345,2]
[424453305,1780921832000,-888.9866072,0.00012345,2]
[424453307,1780921832000,-2202.60401429,0.00012345,2]
[424453318,1780921832000,-200.0,0.000126,4]
[424453308,1780921832000,-23177.60996135,0.00012345,2]
[424453306,1780921832000,-1237.08734021,0.00012345,2]
[424453314,1780921832000,-205.0,0.0001251,2]
[424453313,1780921832000,-1852.42,0.00012498,2]
[424453315,1780921832000,-150.0,0.00012513,2]
[424453316,1780921832000,-24185.58,0.00012514,2]
[424453317,1780921832000,-200.0,0.000126,4]
[424453323,1780921832000,-600.0,0.000128,4]
[424453321,1780921832000,-153.06,0.00012767,2]
[424453320,1780921832000,-400.0,0.000127,4]
[424453312,1780921832000,-963.55246583,0.00012487,2]
[424453341,1780921832000,-624.59697265,0.00013256,2]
[424453330,1780921832000,-442.0,0.00013077,2]
[424453353,1780921832000,-500.0,0.00013329,2]
[424453377,1780921832000,-500.0,0.00013329,2]
[424453375,1780921832000,-500.0,0.00013329,2]
[424453381,1780921832000,-500.0,0.00013329,2]
[424453391,1780921832000,-500.0,0.00013329,2]
[424453380,1780921832000,-500.0,0.00013329,2]
[424453383,1780921832000,-496.62304222,0.00013329,2]
[424453382,1780921832000,-500.0,0.00013329,2]
[424453392,1780921832000,-500.0,0.00013329,2]
[424453386,1780921832000,-500.0,0.00013329,2]
[424453372,1780921832000,-500.0,0.00013329,2]
[424453385,1780921832000,-500.0,0.00013329,2]
[424453393,1780921832000,-500.0,0.00013329,2]
[424453389,1780921832000,-500.0,0.00013329,2]
[424453388,1780921832000,-500.0,0.00013329,2]
[424453390,1780921832000,-500.0,0.00013329,2]
[424453395,1780921832000,-500.0,0.00013329,2]
[424453394,1780921832000,-500.0,0.00013329,2]
[424453397,1780921832000,-200.0,0.00013329,2]
[424453396,1780921832000,-500.0,0.00013329,2]
[424453352,1780921832000,-500.0,0.00013329,2]
[424453387,1780921832000,-500.0,0.00013329,2]
[424453374,1780921832000,-500.0,0.00013329,2]
[424453384,1780921832000,-500.0,0.00013329,2]
[424453370,1780921832000,-500.0,0.00013329,2]
[424453339,1780921832000,-898.38605904,0.00013256,2]
[424453373,1780921832000,-500.0,0.00013329,2]
[424453354,1780921832000,-500.0,0.00013329,2]
[424453356,1780921832000,-500.0,0.00013329,2]
[424453355,1780921832000,-500.0,0.00013329,2]
[424453366,1780921832000,-500.0,0.00013329,2]
[424453360,1780921832000,-500.0,0.00013329,2]
[424453357,1780921832000,-500.0,0.00013329,2]
[424453359,1780921832000,-500.0,0.00013329,2]
[424453361,1780921832000,-500.0,0.00013329,2]
[424453365,1780921832000,-500.0,0.00013329,2]
[424453363,1780921832000,-500.0,0.00013329,2]
[424453362,1780921832000,-500.0,0.00013329,2]
[424453364,1780921832000,-500.0,0.00013329,2]
[424453368,1780921832000,-500.0,0.00013329,2]
[424453378,1780921832000,-500.0,0.00013329,2]
[424453371,1780921832000,-500.0,0.00013329,2]
[424453367,1780921832000,-500.0,0.00013329,2]
[424453369,1780921832000,-500.0,0.00013329,2]
[424453358,1780921832000,-500.0,0.00013329,2]
[424453379,1780921832000,-500.0,0.00013329,2]
[424453376,1780921832000,-500.0,0.00013329,2]
[424453428,1780921833000,-702.74609863,0.00013392,2]
[424453440,1780921833000,-238.00578641,0.00013698,2]
[424453439,1780921833000,-500.0,0.00013698,2]
[424453445,1780921833000,-512.59450446,0.00013698,2]
[424453438,1780921833000,-500.0,0.00013698,2]
[424453431,1780921833000,-150.0,0.00013488,2]
[424453430,1780921833000,-15894.42818488,0.00013439,2]
[424453427,1780921833000,-500.0,0.00013391,2]
[424453429,1780921833000,-150.0,0.000134,2]
[424453437,1780921833000,-15894.42818488,0.00013621,2]
[424453434,1780921833000,-150.0,0.000135,2]
[424453443,1780921833000,-500.0,0.00013698,2]
[424453447,1780921833000,-500.0,0.00013698,2]
[424453442,1780921833000,-500.0,0.00013698,2]
[424453435,1780921833000,-255.0,0.00013602,2]
[424453436,1780921833000,-439.01,0.00013608,2]
[424453444,1780921833000,-403.89328256,0.00013698,2]
[424453446,1780921833000,-500.0,0.00013698,2]
[424453448,1780921833000,-500.0,0.00013698,2]
[424453456,1780921833000,-500.0,0.00013698,2]
[424453459,1780921833000,-500.0,0.00013698,2]
[424453457,1780921833000,-500.0,0.00013698,2]
[424453458,1780921833000,-500.0,0.00013698,2]
[424453453,1780921833000,-500.0,0.00013698,2]
[424453425,1780921833000,-459.0,0.0001333,2]
[424453441,1780921833000,-500.0,0.00013698,2]
[424453426,1780921833000,-600.0,0.00013356,2]
[424453401,1780921833000,-500.0,0.00013329,2]
[424453421,1780921833000,-455.0,0.0001333,2]
[424453405,1780921833000,-500.0,0.00013329,2]
[424453406,1780921833000,-500.0,0.00013329,2]
[424453399,1780921833000,-500.0,0.00013329,2]